bitfinex/quotes_SOLUSD_20250330
["timestamp","ask_amount","ask_price","bid_price","bid_amount"]
[1743376401477,81.037,125.13,125.12,34.626172]
[1743376401860,81.037,125.13,125.12,34.91049514]
[1743376402765,81.037,125.13,125.12,41.40679514]
[1743376403287,0.03,125.14,125.13,0.42648471]
[1743376403464,0.03,125.19,125.13,87.14749514]
[1743376403661,0.03,125.19,125.17,19.21829514]
[1743376403886,0.03,125.19,125.18,26.613972]
[1743376404089,0.03,125.19,125.18,26.89829514]
[1743376404759,0.03,125.19,125.18,7.68]
[1743376405080,81.1,125.18,125.15,7.82216157]
[1743376405763,81.1,125.18,125.15,15.81206157]
[1743376406183,81.1,125.17,125.14,18.79181043]
[1743376406380,81.1,125.16,125.13,18.933972]
[1743376406683,96.07577422,125.16,125.12,0.14216157]
[1743376406867,96.07577422,125.16,125.12,26.613972]
[1743376407790,96.07577422,125.15,125.12,7.68]
[1743376407967,96.07577422,125.14,125.09,8.0569]
[1743376408178,81.1,125.13,125.09,8.0569]
[1743376408782,81.1,125.13,125.1,18.933972]
[1743376410165,81.1,125.13,125.12,18.933972]
[1743376411385,81.1,125.13,125.12,26.926272]
[1743376411690,81.1,125.13,125.12,8.27662314]
[1743376412478,81.1,125.13,125.12,15.95662314]
[1743376415376,81.1,125.13,125.12,7.68]
[1743376416580,81.1,125.13,125.12,15.6723]
[1743376422501,0.03,125.14,125.13,0.28432314]
[1743376422677,0.03,125.14,125.13,19.21829514]
[1743376423793,0.03,125.14,125.13,27.20989514]
[1743376425483,0.03,125.14,125.13,26.925572]
[1743376425873,0.03,125.14,125.13,8.27592314]
[1743376426269,0.03,125.14,125.13,26.925572]
[1743376427988,0.03,125.14,125.12,8.0551]
[1743376431893,0.03,125.14,125.13,18.933972]
[1743376432993,0.03,125.14,125.13,0.28432314]
[1743376433301,0.03,125.14,125.13,18.933972]
[1743376434006,0.03,125.14,125.13,26.925572]
[1743376435099,0.03,125.14,125.12,8.0553]
[1743376442208,0.03,125.14,125.13,18.933972]
[1743376442419,0.03,125.14,125.13,19.21829514]
[1743376443394,0.03,125.14,125.13,26.925572]
[1743376445713,0.03,125.14,125.13,26.988572]
[1743376449491,0.03,125.14,125.13,27.27289514]
[1743376453916,0.03,125.14,125.13,8.0546]
[1743376454904,0.03,125.14,125.13,0.063]
[1743376456033,9.61294075,125.14,125.13,0.063]
[1743376456733,11.30484075,125.14,125.13,0.063]
[1743376459922,1.7219,125.14,125.13,0.063]
[1743376462051,11.30484075,125.14,125.13,0.063]
[1743376462421,11.30484075,125.14,125.1,0.063]
[1743376462606,18.98484075,125.14,125.1,0.063]
[1743376462814,9.58294075,125.11,125.1,0.063]
[1743376463013,47.91470375,125.11,125.1,0.063]
[1743376463232,56.05160375,125.11,125.1,0.063]
[1743376464835,62.44864123,125.11,125.1,0.063]
[1743376465035,81.38261323,125.11,125.09,0.063]
[1743376465333,20.0,125.08,125.03,0.063]
[1743376465525,9.58294075,125.05,125.03,0.063]
[1743376465757,15.0015161,125.04,125.03,0.063]
[1743376467920,15.0015161,125.05,125.03,0.063]
[1743376468320,15.0015161,125.04,125.03,0.063]
[1743376469233,1.5685,125.06,125.03,0.063]
[1743376469443,35.0015161,125.07,125.03,0.063]
[1743376470121,15.0015161,125.06,125.03,0.063]
[1743376470320,15.0015161,125.05,125.03,0.063]
[1743376470739,15.0015161,125.04,125.03,0.063]
[1743376471146,30.0030322,125.04,125.03,0.063]
[1743376471319,15.0015161,125.04,125.03,0.063]
[1743376472338,16.5700161,125.04,125.03,0.063]
[1743376473033,31.5715322,125.04,125.03,0.063]
[1743376473542,16.5700161,125.04,125.03,0.063]
[1743376475454,1.5685,125.07,125.03,0.063]
[1743376475621,15.0015161,125.05,125.03,0.063]
[1743376477641,96.1015161,125.06,125.03,0.063]
[1743376477854,81.1,125.05,125.03,0.063]
[1743376480240,96.1015161,125.05,125.03,0.063]
[1743376480728,15.0015161,125.04,125.03,0.063]
[1743376481125,30.0030322,125.04,125.03,0.063]
[1743376483348,30.0030322,125.04,125.0,0.063]
[1743376483349,37.7754322,125.04,125.0,0.063]
[1743376483533,15.0015161,125.01,125.0,0.063]
[1743376486340,33.9354881,125.01,125.0,0.063]
[1743376490148,15.28583924,125.01,125.0,0.063]
[1743376492345,80.974,124.99,124.93,8.0672]
[1743376492526,15.0015161,124.97,124.93,8.0672]
[1743376495485,15.0015161,124.97,124.93,0.063]
[1743376495667,9.61794059,124.97,124.93,0.063]
[1743376496236,28.55191259,124.97,124.93,0.063]
[1743376496435,32.61662305,124.97,124.93,0.063]
[1743376497741,19.37951021,124.97,124.93,0.063]
[1743376498431,25.89511357,124.97,124.93,0.063]
[1743376499457,36.92099975,124.94,124.93,0.063]
[1743376499857,51.95147636,124.94,124.9,0.063]
[1743376500069,15.03047661,124.91,124.9,0.063]
[1743376501455,39.36479975,124.91,124.9,0.063]
[1743376501660,58.29877175,124.91,124.9,0.063]
[1743376501951,20.0,124.88,124.87,0.063]
[1743376502257,35.31479975,124.88,124.87,0.063]
[1743376503257,50.34527636,124.88,124.87,0.063]
[1743376503437,35.03047661,124.88,124.87,0.063]
[1743376504155,42.99479975,124.88,124.87,0.063]
[1743376504348,42.99479975,124.88,124.81,0.063]
[1743376504349,58.02527636,124.88,124.81,0.063]
[1743376504530,15.03047661,124.83,124.81,0.063]
[1743376504939,15.03047661,124.86,124.81,0.063]
[1743376505460,81.1,124.85,124.81,19.28129514]
[1743376505762,81.1,124.85,124.82,6.2566]
[1743376505941,81.1,124.88,124.83,18.933972]
[1743376506238,15.03047661,124.86,124.82,13.9366]
[1743376507261,15.03047661,124.85,124.82,13.9366]
[1743376507775,15.03047661,124.85,124.83,8.0108]
[1743376508061,15.03047661,124.85,124.82,14.2679]
[1743376508658,15.03047661,124.85,124.82,6.2566]
[1743376508870,96.13047661,124.84,124.81,8.0749]
[1743376509569,96.13047661,124.84,124.81,0.063]
[1743376509958,96.13047661,124.84,124.81,8.075]
[1743376510158,96.13047661,124.84,124.81,0.063]
[1743376511247,96.13047661,124.83,124.81,0.063]
[1743376511449,96.13047661,124.82,124.81,0.063]
[1743376511848,15.03047661,124.82,124.81,0.063]
[1743376512862,35.03047661,124.85,124.81,0.063]
[1743376513274,15.03047661,124.84,124.81,0.063]
[1743376513566,81.1,124.83,124.81,0.063]
[1743376514163,96.13047661,124.87,124.81,20.665372]
[1743376514368,81.1,124.86,124.81,20.665372]
[1743376514755,81.1,124.86,124.82,0.28432314]
[1743376515753,0.063,124.9,124.84,19.21829514]
[1743376515952,0.063,124.9,124.87,8.0083]
[1743376516961,0.063,124.9,124.87,28.0291]
[1743376517667,15.09347661,124.9,124.86,8.0088]
[1743376518480,0.063,124.9,124.86,8.0088]
[1743376518656,0.063,124.9,124.84,26.65984886]
[1743376518657,15.03047661,124.89,124.84,26.65984886]
[1743376518980,96.13047661,124.89,124.84,26.65984886]
[1743376519367,96.13047661,124.89,124.85,18.933972]
[1743376519573,81.1,124.89,124.85,18.933972]
[1743376520369,81.1,124.89,124.86,8.0089]
[1743376524483,15.03047661,124.88,124.82,8.0115]
[1743376524688,15.03047661,124.85,124.82,8.0115]
[1743376525484,15.03047661,124.85,124.81,27.008972]
[1743376525658,81.1,124.86,124.81,27.008972]
[1743376525659,15.03047661,124.83,124.81,0.063]
[1743376526678,81.1,124.84,124.81,0.063]
[1743376526862,81.1,124.84,124.81,0.34732314]
[1743376527790,81.1,124.84,124.81,0.63164628]
[1743376528781,0.063,124.87,124.83,18.933972]
[1743376528983,15.09347661,124.87,124.83,18.933972]
[1743376529378,15.09347661,124.87,124.82,14.4826]
[1743376529565,15.03047661,124.85,124.82,8.0115]
[1743376530177,15.03047661,124.84,124.81,0.063]
[1743376530680,15.03047661,124.84,124.81,8.075]
[1743376531004,15.03047661,124.83,124.81,0.063]
[1743376531206,15.03047661,124.82,124.81,0.063]
[1743376531985,96.13047661,124.84,124.81,0.063]
[1743376532289,81.1,124.84,124.81,0.063]
[1743376532472,96.13047661,124.84,124.81,0.063]
[1743376532672,15.03047661,124.83,124.81,0.063]
[1743376534389,96.13047661,124.84,124.81,0.063]
[1743376534593,81.1,124.84,124.81,0.34732314]
[1743376534977,81.1,124.84,124.82,8.0115]
[1743376535494,81.163,124.87,124.82,8.0115]
[1743376535989,81.163,124.87,124.83,18.933972]
[1743376536381,0.063,124.87,124.83,18.933972]
[1743376537099,15.03047661,124.86,124.81,7.723]
[1743376537299,15.03047661,124.86,124.82,26.945472]
[1743376537977,15.09347661,124.87,124.82,26.945472]
[1743376539003,0.063,124.87,124.83,0.28432314]
[1743376539176,0.063,124.87,124.84,8.0102]
[1743376539783,0.063,124.87,124.83,8.0106]
[1743376539984,15.09347661,124.87,124.83,8.0106]
[1743376540184,0.063,124.87,124.84,0.28432314]
[1743376541210,0.063,124.87,124.85,8.0096]
[1743376542401,0.063,124.87,124.84,8.29422314]
[1743376543707,0.063,124.87,124.84,0.28432314]
[1743376543924,15.03047661,124.86,124.82,28.0115]
[1743376544200,15.03047661,124.84,124.81,8.075]
[1743376544699,96.13047661,124.85,124.81,8.075]
[1743376545396,81.1,124.85,124.81,8.075]
[1743376546112,0.063,124.87,124.82,19.21829514]
[1743376547906,0.063,124.87,124.83,8.0108]
[1743376550813,15.03047661,124.85,124.81,0.063]
[1743376550999,15.03047661,124.85,124.81,8.0749]
[1743376553096,81.1,124.86,124.81,8.0749]
[1743376553295,81.1,124.86,124.82,0.28432314]
[1743376553709,81.1,124.86,124.82,18.933972]
[1743376554809,96.13047661,124.86,124.82,18.933972]
[1743376555214,15.03047661,124.85,124.82,18.933972]
[1743376555416,15.03047661,124.85,124.82,8.29582314]
[1743376555712,15.03047661,124.85,124.81,8.075]
[1743376555918,15.03047661,124.84,124.81,0.063]
[1743376556100,15.03047661,124.82,124.81,0.063]
[1743376558239,15.03047661,124.83,124.81,0.063]
[1743376558723,15.03047661,124.82,124.81,0.063]
[1743376559721,24.09243602,124.82,124.81,0.063]
[1743376560396,24.09243602,124.83,124.81,0.063]
[1743376560591,24.09243602,124.86,124.81,18.996972]
[1743376560902,24.15543602,124.87,124.81,18.996972]
[1743376561216,81.163,124.87,124.81,18.996972]
[1743376561407,81.163,124.87,124.82,28.0403]
[1743376561715,105.25543602,124.87,124.82,28.0403]
[1743376562098,81.163,124.87,124.82,28.0403]
[1743376562611,81.163,124.87,124.82,8.0115]
[1743376562612,105.25543602,124.87,124.82,8.0115]
[1743376563120,24.09243602,124.86,124.82,8.0115]
[1743376565920,81.163,124.87,124.83,18.933972]
[1743376567638,0.063,124.87,124.84,0.28432314]
[1743376567815,0.063,124.87,124.86,18.933972]
[1743376568013,0.063,124.87,124.86,26.942872]
[1743376568909,0.063,124.87,124.86,27.22719514]
[1743376569337,0.063,124.87,124.86,26.942872]
[1743376574136,0.063,124.87,124.85,8.0094]
[1743376574322,0.063,124.87,124.85,15.6694]
[1743376574526,0.063,124.87,124.85,7.66]
[1743376574933,0.063,124.87,124.83,8.0105]
[1743376574934,24.15543602,124.87,124.83,8.0105]
[1743376575822,0.063,124.87,124.83,8.0105]
[1743376576020,0.063,124.87,124.84,18.933972]
[1743376576217,0.063,124.87,124.85,8.0096]
[1743376576420,0.063,124.87,124.86,18.933972]
[1743376576939,0.063,124.87,124.84,8.0099]
[1743376578929,0.063,124.87,124.86,40.90289514]
[1743376579245,0.063,124.87,124.86,47.40729514]
[1743376581043,0.063,124.87,124.86,55.41619514]
[1743376581243,0.063,124.87,124.86,18.933972]
[1743376582727,0.063,124.87,124.86,26.942872]
[1743376582929,0.063,124.87,124.86,27.22719514]
[1743376585651,0.0001,124.87,124.86,27.22719514]
[1743376585854,0.063,124.9,124.89,20.56864628]
[1743376586027,1.5896,124.97,124.93,19.21829514]
[1743376586249,106.75150972,124.99,124.94,7.64]
[1743376586426,24.06190972,124.98,124.94,7.64]
[1743376586828,106.75150972,124.99,124.94,7.64]
[1743376587524,106.75150972,124.99,124.94,15.6433]
[1743376588447,82.6896,124.99,124.95,18.933972]
[1743376588852,106.75150972,124.99,124.95,18.933972]
[1743376589223,24.06190972,124.97,124.94,7.64]
[1743376590130,24.06190972,124.96,124.91,7.64]
[1743376590328,82.6896,124.99,124.91,7.64]
[1743376590329,24.06190972,124.97,124.91,7.64]
[1743376590529,24.06190972,124.98,124.92,18.933972]
[1743376590950,24.06190972,124.97,124.92,18.933972]
[1743376591145,24.06190972,124.98,124.92,18.933972]
[1743376591752,24.06190972,124.98,124.93,8.0044]
[1743376592762,82.6896,124.99,124.94,18.933972]
[1743376593133,1.5896,124.99,124.95,0.28432314]
[1743376593347,0.063,125.0,124.97,18.933972]
[1743376593857,0.063,125.0,124.97,26.935672]
[1743376594059,0.063,125.0,124.97,18.933972]
[1743376594681,0.063,125.0,124.97,26.935672]
[1743376595243,101.1,124.99,124.91,231.04]
[1743376595451,24.06190972,124.93,124.87,0.14216157]
[1743376595762,24.06190972,124.91,124.84,239.0597]
[1743376596070,24.06190972,124.9,124.85,19.21829514]
[1743376596257,24.06190972,124.91,124.84,239.0597]
[1743376596464,24.06190972,124.91,124.85,19.07613357]
[1743376596641,24.06190972,124.91,124.85,19.21829514]
[1743376596845,1.616,124.92,124.85,19.21829514]
[1743376597536,1.616,124.92,124.85,18.933972]
[1743376597744,1.616,124.92,124.86,0.28432314]
[1743376597943,1.616,124.92,124.88,18.933972]
[1743376598157,1.616,124.92,124.88,0.28432314]
[1743376598377,1.616,124.92,124.88,18.933972]
[1743376598579,25.67790972,124.92,124.88,18.933972]
[1743376599669,1.616,124.92,124.88,18.933972]
[1743376599962,24.06190972,124.93,124.88,18.933972]
[1743376600149,24.06190972,124.94,124.88,26.941172]
[1743376600341,24.06190972,124.93,124.88,26.941172]
[1743376603267,105.16190972,124.95,124.88,26.941172]
[1743376603450,24.06190972,124.95,124.9,18.933972]
[1743376604666,105.22490972,124.97,124.91,0.28432314]
[1743376604963,0.063,124.97,124.94,18.64964886]
[1743376605145,0.063,124.97,124.94,26.28964886]
[1743376605570,0.063,124.97,124.95,0.28432314]
[1743376605874,0.063,124.97,124.96,18.933972]
[1743376606166,0.063,124.97,124.96,0.28432314]
[1743376606944,0.063,124.97,124.96,8.28682314]
[1743376607147,0.063,124.97,124.96,8.57114628]
[1743376607769,0.0001,124.97,124.96,8.57114628]
[1743376608084,0.063,125.0,124.99,39.21829514]
[1743376608401,0.063,125.0,124.99,53.40229514]
[1743376608749,0.063,125.0,124.99,46.85829514]
[1743376608971,0.063,125.0,124.99,54.85889514]
[1743376609566,0.063,125.0,124.99,7.64]
[1743376610470,0.063,125.0,124.99,15.6406]
[1743376610670,0.063,125.0,124.97,18.933972]
[1743376611362,0.063,125.0,124.97,26.935572]
[1743376612170,0.063,125.0,124.98,18.933972]
[1743376612361,0.063,125.0,124.99,20.28432314]
[1743376613476,0.063,125.0,124.99,8.28492314]
[1743376613774,0.063,125.0,124.99,0.28432314]
[1743376614349,0.063,125.0,124.98,8.001]
[1743376614550,0.063,125.0,124.97,26.65144886]
[1743376615172,0.063,125.0,124.97,8.0018]
[1743376615474,0.063,125.0,124.97,26.65144886]
[1743376616662,0.063,125.0,124.98,18.933972]
[1743376617753,0.063,125.0,124.99,8.28492314]
[1743376618158,0.063,125.0,124.99,26.934572]
[1743376619484,0.063,125.0,124.99,27.21889514]
[1743376620877,0.063,125.0,124.98,8.0012]
[1743376621062,0.063,125.0,124.96,8.0025]
[1743376621063,24.12490972,125.0,124.96,8.0025]
[1743376621263,24.06190972,124.99,124.95,34.576872]
[1743376621672,24.06190972,124.98,124.94,239.0235]
[1743376623063,24.06190972,124.97,124.94,231.02]
[1743376623284,24.06190972,124.97,124.93,34.577972]
[1743376623801,24.06190972,124.94,124.9,8.32042314]
[1743376623967,24.06190972,124.92,124.9,0.03]
[1743376624165,24.06190972,124.91,124.9,0.03]
[1743376624997,24.06190972,124.92,124.9,0.03]
[1743376625767,106.83920972,124.96,124.9,18.963972]
[1743376626002,25.73920972,124.96,124.9,18.963972]
[1743376626301,30.39770972,124.97,124.91,0.28432314]
[1743376626592,24.06190972,124.96,124.91,0.28432314]
[1743376627192,30.39770972,124.97,124.91,0.28432314]
[1743376627685,30.39770972,124.97,124.93,18.933972]
[1743376628374,6.3358,124.97,124.93,18.933972]
[1743376628571,6.3358,124.97,124.93,0.28432314]
[1743376628760,24.06190972,124.96,124.92,8.0051]
[1743376628959,24.06190972,124.95,124.92,8.0051]
[1743376629284,30.39770972,124.97,124.92,8.0051]
[1743376629475,24.06190972,124.98,124.93,18.933972]
[1743376629683,24.06190972,124.98,124.94,8.0038]
[1743376629881,24.06190972,124.97,124.94,8.0038]
[1743376630089,24.06190972,124.98,124.94,8.0038]
[1743376630910,25.73920972,124.99,124.95,18.933972]
[1743376631072,1.6773,124.99,124.95,18.933972]
[1743376631272,25.73920972,124.99,124.95,18.933972]
[1743376631915,25.73920972,124.99,124.95,8.28732314]
[1743376632225,82.7773,124.99,124.9,7.67]
[1743376632399,24.06190972,124.94,124.91,26.939672]
[1743376632720,24.06190972,124.94,124.9,15.6762]
[1743376632913,24.06190972,124.93,124.9,7.67]
[1743376634801,24.06190972,124.93,124.9,15.6762]
[1743376635196,24.06190972,124.93,124.9,7.67]
[1743376636198,24.06190972,124.92,124.9,0.03]
[1743376639803,24.06190972,124.91,124.9,0.03]
[1743376640169,105.16190972,124.91,124.9,0.03]
[1743376640371,6.4148,124.9,124.85,0.03]
[1743376640678,24.06190972,124.86,124.85,0.03]
[1743376646401,24.06190972,124.87,124.85,0.03]
[1743376646899,24.06190972,124.86,124.85,0.03]
[1743376647105,24.06190972,124.87,124.85,0.03]
[1743376649106,81.1,124.89,124.85,0.03]
[1743376649296,24.06190972,124.88,124.85,0.03]
[1743376650120,25.62010972,124.9,124.85,18.963972]
[1743376650490,24.06190972,124.92,124.85,18.963972]
[1743376650711,24.06190972,124.91,124.85,18.963972]
[1743376651197,24.06190972,124.93,124.87,19.21829514]
[1743376652503,24.06190972,124.95,124.9,20.0]
[1743376652686,6.5792,124.97,124.91,18.933972]
[1743376652885,24.06190972,124.96,124.91,18.933972]
[1743376653192,0.063,124.97,124.93,18.933972]
[1743376653505,0.063,124.97,124.93,0.28432314]
[1743376653695,24.12490972,124.97,124.92,8.0051]
[1743376654283,24.12490972,124.97,124.92,28.0179]
[1743376655398,24.12490972,124.97,124.92,8.0051]
[1743376657016,24.06190972,124.94,124.9,8.0059]
[1743376657184,24.06190972,124.93,124.9,8.0059]
[1743376657389,24.06190972,124.94,124.9,8.0059]
[1743376657710,25.74730972,124.95,124.9,8.0059]
[1743376658386,24.06190972,124.96,124.91,18.933972]
[1743376659091,24.06190972,124.95,124.9,0.28432314]
[1743376659291,24.06190972,124.95,124.91,8.0057]
[1743376659503,0.063,124.93,124.91,8.0057]
[1743376659703,0.063,124.93,124.89,18.933972]
[1743376659893,24.06190972,124.9,124.86,8.0089]
[1743376661007,24.06190972,124.92,124.86,8.0089]
[1743376661811,24.12490972,124.93,124.87,19.21829514]
[1743376663118,24.12490972,124.93,124.88,8.0076]
[1743376665610,0.063,124.93,124.89,26.83829514]
[1743376667499,0.063,124.93,124.9,8.0064]
[1743376670213,0.063,124.93,124.91,18.933972]
[1743376671419,0.063,124.93,124.92,26.939072]
[1743376672506,0.063,124.93,124.92,27.22339514]
[1743376672703,0.063,124.93,124.92,33.51519514]
[1743376673413,0.0001,124.93,124.92,81.01830331]
[1743376673610,0.0001,124.93,124.92,74.72650331]
[1743376673812,0.0001,124.93,124.91,8.0056]
[1743376674118,0.0001,124.93,124.91,15.6256]
[1743376674705,0.0001,124.93,124.91,7.62]
[1743376674914,0.0001,124.93,124.91,15.6255]
[1743376678120,0.0001,124.93,124.91,7.62]
[1743376678329,0.0001,124.93,124.91,15.6256]
[1743376678501,0.0001,124.93,124.92,0.28432314]
[1743376678901,0.0001,124.93,124.92,8.28942314]
[1743376680211,0.0001,124.93,124.92,26.939072]
[1743376681511,0.0001,124.93,124.9,0.03]
[1743376681715,24.06200972,124.93,124.9,18.963972]
[1743376681921,0.0001,124.93,124.9,26.970172]
[1743376684427,24.06200972,124.93,124.9,0.03]
[1743376684612,25.74660972,124.91,124.9,0.03]
[1743376685226,0.0001,124.93,124.9,0.03]
[1743376685807,0.0001,124.93,124.91,0.28432314]
[1743376687431,0.0001,124.93,124.92,8.0051]
[1743376687618,0.0001,124.93,124.92,27.22339514]
[1743376689333,0.0001,124.93,124.92,74.72650331]
[1743376690129,0.0001,124.93,124.92,213.02650331]
[1743376692018,1.7477,125.03,124.96,20.28432314]
[1743376692232,1.7477,125.03,124.98,0.28432314]
[1743376693014,0.063,125.03,125.0,0.28432314]
[1743376693934,24.06190972,125.02,124.98,47.50310817]
[1743376695215,24.06190972,125.02,124.98,55.50410817]
[1743376695409,24.06190972,125.02,124.97,7.62]
[1743376695615,24.06190972,125.0,124.97,7.62]
[1743376696430,24.06190972,125.0,124.97,15.6218]
[1743376696736,25.69040972,125.02,124.97,15.6218]
[1743376696942,1.6285,125.02,124.97,15.6218]
[1743376697237,1.6285,125.02,124.98,0.28432314]
[1743376697539,1.6285,125.02,124.98,8.28502314]
[1743376698333,25.69040972,125.02,124.98,8.28502314]
[1743376698525,25.69040972,125.02,124.98,0.28432314]
[1743376698725,24.06190972,125.01,124.97,7.62]
[1743376698925,24.06190972,125.0,124.97,7.62]
[1743376699431,24.06190972,125.0,124.97,0.28432314]
[1743376699733,24.06190972,124.98,124.95,286.12310817]
[1743376699949,24.06190972,124.99,124.95,238.62]
[1743376700626,24.06190972,124.98,124.95,238.62]
[1743376701857,24.06190972,124.97,124.92,55.57060817]
[1743376702157,24.06190972,124.95,124.92,0.063]
[1743376702434,24.06190972,124.94,124.92,0.063]
[1743376702831,24.06190972,124.93,124.92,0.063]
[1743376703835,49.73171944,124.93,124.92,0.063]
[1743376704338,20.0,124.91,124.9,0.03]
[1743376704516,44.06190972,124.91,124.9,0.03]
[1743376711525,152.38590486,124.91,124.85,0.03]
[1743376711717,25.67300972,124.86,124.85,0.03]
[1743376711922,49.73491944,124.86,124.85,0.03]
[1743376712145,50.01924258,124.86,124.85,0.03]
[1743376713242,0.28432314,124.85,124.84,0.03]
[1743376713420,24.34623286,124.85,124.84,0.03]
[1743376713625,124.38020486,124.85,124.84,0.03]
[1743376716420,132.38980486,124.85,124.81,0.063]
[1743376716625,44.06190972,124.82,124.81,0.063]
[1743376718452,44.34623286,124.82,124.81,0.063]
[1743376718947,93.56241458,124.82,124.81,0.063]
[1743376719130,101.57391458,124.82,124.81,0.063]
[1743376719331,0.28432314,124.81,124.79,0.063]
[1743376719633,48.12381944,124.8,124.79,0.063]
[1743376720350,50.01924258,124.8,124.79,0.063]
[1743376721860,24.06190972,124.8,124.79,0.063]
[1743376722248,1.5687,124.83,124.79,0.063]
[1743376722249,24.06190972,124.81,124.79,0.063]
[1743376722449,24.06190972,124.82,124.79,0.063]
[1743376724441,24.06190972,124.81,124.79,0.063]
[1743376725628,24.06190972,124.82,124.79,0.063]
[1743376726850,24.06190972,124.81,124.79,0.063]
[1743376727061,24.06190972,124.8,124.79,0.063]
[1743376728359,24.06190972,124.82,124.79,0.063]
[1743376729261,24.06190972,124.81,124.79,0.063]
[1743376729448,24.06190972,124.8,124.79,0.063]
[1743376730457,24.06190972,124.81,124.79,0.063]
[1743376730660,24.06190972,124.8,124.79,0.063]
[1743376730850,49.69251944,124.8,124.79,0.063]
[1743376731053,49.97684258,124.8,124.79,0.063]
[1743376731258,56.37324258,124.8,124.77,0.03]
[1743376731439,24.06190972,124.78,124.77,0.03]
[1743376731645,15.07529591,124.78,124.77,0.03]
[1743376733861,24.11021011,124.78,124.77,0.03]
[1743376734280,20.0,124.81,124.77,0.03]
[1743376734488,24.11021011,124.81,124.77,8.0447]
[1743376734650,24.11021011,124.8,124.77,0.03]
[1743376734976,24.11021011,124.78,124.77,0.03]
[1743376735176,24.11021011,124.79,124.77,0.03]
[1743376735474,24.11021011,124.8,124.77,0.03]
[1743376736281,24.11021011,124.81,124.77,0.03]
[1743376737087,24.11021011,124.8,124.77,0.03]
[1743376738243,24.11021011,124.81,124.77,0.03]
[1743376739243,0.063,124.82,124.77,18.963972]
[1743376739451,0.063,124.82,124.78,7.62]
[1743376740357,24.11021011,124.81,124.78,7.62]
[1743376740658,24.11021011,124.8,124.78,7.62]
[1743376740870,24.11021011,124.81,124.78,7.62]
[1743376741068,24.11021011,124.81,124.77,0.03]
[1743376742768,24.11021011,124.81,124.78,0.03]
[1743376744280,24.17321011,124.82,124.78,0.03]
[1743376744885,0.063,124.82,124.78,0.03]
[1743376745074,0.063,124.82,124.78,0.31432314]
[1743376745277,0.063,124.82,124.81,18.933972]
[1743376745465,0.063,124.82,124.81,26.83829514]
[1743376745663,0.063,124.82,124.81,33.32939514]
[1743376745883,0.0001,124.82,124.81,219.13250331]
[1743376746085,0.0001,124.82,124.81,227.14460331]
[1743376754169,0.0001,124.82,124.81,74.44918017]
[1743376754588,0.0001,124.82,124.81,47.50310817]
[1743376754898,24.11031011,124.82,124.79,0.14216157]
[1743376755285,0.0001,124.82,124.79,0.14216157]
[1743376755488,0.0001,124.82,124.79,8.15516157]
[1743376756070,0.0001,124.82,124.8,18.79181043]
[1743376756276,0.0001,124.82,124.81,0.14216157]
[1743376756881,0.0001,124.82,124.81,26.946072]
[1743376757477,0.0001,124.82,124.79,8.0133]
[1743376757797,0.0001,124.82,124.8,18.933972]
[1743376758783,0.0001,124.82,124.81,26.946072]
[1743376759307,0.0001,124.82,124.81,27.23039514]
[1743376765008,0.0001,124.82,124.81,213.03350331]
[1743376767501,0.0001,124.82,124.81,213.06350331]
[1743376769188,8.1701,124.91,124.86,18.64964886]
[1743376769390,8.1701,124.91,124.86,26.24964886]
[1743376769591,1.6151,124.91,124.87,0.28432314]
[1743376769917,1.6151,124.91,124.87,0.56864628]
[1743376769918,0.063,124.91,124.87,0.56864628]